[Event "10th Iberoamericano-ch 2024"]
[Site "Linares"]
[Date "2024.09.27"]
[Round "4.13"]
[White "Zambrana, Osvaldo"]
[Black "Escalona Landi, Samid Eduardo"]
[Result "1/2-1/2"]
[ECO "B67"]
[WhiteElo "2405"]
[BlackElo "2305"]
[Annotator "RC"]
[PlyCount "107"]
[EventDate "2024.09.25"]
[EventType "swiss"]
[EventCountry "ESP"]
[SourceTitle "playchess.com"]
[Source "ChessBase"]
[SourceQuality "1"]
[TimeControl "5400+30"]

1. e4 {[%emt 0:04:42]} c5 {[%emt 0:04:28]} 2. Nf3 {[%emt 0:00:05]} Nc6 {[%emt 0:00:07]} 3. d4 {[%emt 0:00:15]} cxd4 {[%emt 0:00:06]} 4. Nxd4 {[%emt 0:00:10]} Nf6 {[%emt 0:00:07]} 5. Nc3 {[%emt 0:00:05]} d6 {[%emt 0:00:04]} 6. Bg5 {[%emt 0:00:08]} e6 {[%emt 0:00:05]} 7. Qd2 {[%emt 0:00:10]} a6 {[%emt 0:00:05]} 8. O-O-O {[%emt 0:00:10]} Bd7 {[%emt 0:00:04]} 9. f4 {[%emt 0:02:13]} b5 {[%emt 0:01:49]} 10. Bxf6 {[%emt 0:00:59]} gxf6 {[%emt 0:00:08]} 11. Kb1 {[%emt 0:00:17]} Qb6 {[%emt 0:00:26]} 12. Nxc6 {[%emt 0:00:37]} Bxc6 {[%emt 0:00:06]} 13. f5 {[%emt 0:00:08]} b4 {[%emt 0:00:06]} 14. Ne2 {[%emt 0:00:11]} e5 {[%emt 0:00:04]} 15. Ng3 {[%emt 0:00:42]} h5 {[%emt 0:00:21]} 16. h4 {[%emt 0:00:07]} Qc5 {[%emt 0:00:13]} 17. Bd3 {[%emt 0:00:41]} Bh6 {[%emt 0:00:16]} 18. Qe2 {[%emt 0:02:20]} Qe3 {[%emt 0:00:26]} 19. Rh3 {[%emt 0:14:50]} Qxe2 {[%emt 0:02:05]} 20. Bxe2 {[%emt 0:00:05]} Ke7 {[%emt 0:00:08]} 21. Bf3 {[%emt 0:00:34]} Rac8 {[%emt 0:04:30]} 22. Nxh5 {[%emt 0:00:36]} Ba4 {[%emt 0:00:21]} 23. b3 {[%emt 0:00:52]} Bb5 {[%emt 0:00:04]} 24. g4 {[%emt 0:06:00]} Rc3 {[%emt 0:01:56]} 25. Nxf6 {[%emt 0:03:43]} Kxf6 {[%emt 0:00:19]} 26. g5+ {[%emt 0:00:09]} Ke7 {[%emt 0:00:57]} 27. f6+ {[%emt 0:09:01]} Kd8 {[%emt 0:01:12]} 28. gxh6 {[%emt 0:10:17]} Rxh6 {[%emt 0:13:37]} 29. h5 {[%emt 0:08:20]} Kc7 {[%emt 0:07:19]} 30. Rdh1 {[%emt 0:00:28]} Bd7 {[%emt 0:00:43]} 31. Rg3 {[%emt 0:00:21]} d5 {[%emt 0:00:51]} 32. Rh4 {[%emt 0:04:18]} dxe4 {[%emt 0:14:40]} 33. Rxe4 {[%emt 0:00:14]} Bc6 {[%emt 0:00:50]} 34. Rc4 {[%emt 0:00:08]} Rxc4 {[%emt 0:00:05]} 35. bxc4 {[%emt 0:00:05]} e4 {[%emt 0:00:34]} 36. Be2 {[%emt 0:00:52]} Rxf6 {[%emt 0:00:25]} 37. c5 {[%emt 0:00:06]} Bb5 {[%emt 0:16:00]} 38. Bxb5 {[%emt 0:01:38]} axb5 {[%emt 0:00:05]} 39. Kc1 {[%emt 0:07:19]} Kc6 {[%emt 0:08:22]} 40. Kd2 {[%emt 0:00:28]} Rf2+ {[%emt 0:00:34]} 41. Ke3 {[%emt 0:00:25]} Rxc2 {[%emt 0:00:20]} 42. Kxe4 {[%emt 0:01:09]} Rxa2 {[%emt 0:02:30]} 43. Rh3 {[%emt 0:01:32]} Ra3 {[%emt 0:04:15]} 44. Rh1 {[%emt 0:01:44]} Kxc5 {[%emt 0:00:45]} 45. h6 {[%emt 0:01:30]} Ra8 {[%emt 0:01:24]} 46. h7 {[%emt 0:00:06]} Rh8 {[%emt 0:00:07]} 47. Kd3 {[%emt 0:00:06]} b3 {[%emt 0:04:08]} 48. Kc3 {[%emt 0:00:07]} Kd5 {[%emt 0:00:27]} 49. Kxb3 {[%emt 0:09:50]} f5 {[%emt 0:00:21]} 50. Rh4 {[%emt 0:00:10]} Ke5 {[%emt 0:00:42]} 51. Kc3 {[%emt 0:01:39]} Kf6 {[%emt 0:02:02]} 52. Kd4 {[%emt 0:00:06]} b4 {[%emt 0:02:44]} 53. Ke3 {[%emt 0:00:25]} b3 {[%emt 0:00:26]} 54. Kf4 {[%emt 0:01:36]} 1/2-1/2

[Event "10th Iberoamericano-ch 2024"]
[Site "Linares"]
[Date "2024.09.27"]
[Round "4.14"]
[White "Masague Artero, Guerau"]
[Black "Matamoros Franco, Carlos S."]
[Result "1/2-1/2"]
[ECO "A55"]
[WhiteElo "2251"]
[BlackElo "2404"]
[Annotator "RC"]
[PlyCount "67"]
[EventDate "2024.09.25"]
[EventType "swiss"]
[EventCountry "ESP"]
[SourceTitle "playchess.com"]
[Source "ChessBase"]
[SourceQuality "1"]
[TimeControl "5400+30"]

1. d4 {[%emt 0:00:04]} d6 {[%emt 0:00:19]} 2. Nf3 {[%emt 0:00:25]} Nf6 {[%emt 0:00:26]} 3. c4 {[%emt 0:00:05]} Nbd7 {[%emt 0:00:28]} 4. Nc3 {[%emt 0:00:27]} e5 {[%emt 0:00:15]} 5. e4 {[%emt 0:00:19]} Be7 {[%emt 0:00:19]} 6. Be2 {[%emt 0:02:05]} c6 {[%emt 0:02:04]} 7. O-O {[%emt 0:01:11]} Qc7 {[%emt 0:01:13]} 8. Re1 {[%emt 0:06:47]} Nf8 {[%emt 0:02:19]} 9. Bf1 {[%emt 0:10:47]} Ng6 {[%emt 0:01:26]} 10. Rb1 {[%emt 0:07:09]} O-O {[%emt 0:04:34]} 11. d5 {[%emt 0:03:01]} Bd7 {[%emt 0:02:40]} 12. Bd2 {[%emt 0:05:35]} Rac8 {[%emt 0:03:30]} 13. b4 {[%emt 0:05:58]} cxd5 {[%emt 0:19:19]} 14. cxd5 {[%emt 0:00:09]} Qb8 {[%emt 0:00:17]} 15. a4 {[%emt 0:02:34]} Bd8 {[%emt 0:06:28]} 16. a5 {[%emt 0:15:02]} h6 {[%emt 0:24:59]} 17. g3 {[%emt 0:09:01]} b5 {[%emt 0:08:17]} 18. Rc1 {[%emt 0:08:54]} a6 {[%emt 0:00:34]} 19. h3 {[%emt 0:04:47]} Qb7 {[%emt 0:00:32]} 20. Nh2 {[%emt 0:04:51]} Bc7 {[%emt 0:02:18]} 21. Qf3 {[%emt 0:04:33]} Nh7 {[%emt 0:04:25]} 22. Bd3 {[%emt 0:00:50]} Ne7 {[%emt 0:00:16]} 23. g4 {[%emt 0:01:54]} Ng6 {[%emt 0:00:26]} 24. Qg3 {[%emt 0:01:07]} Bd8 {[%emt 0:00:20]} 25. Ne2 {[%emt 0:01:07]} Bh4 {[%emt 0:08:07]} 26. Qg2 {[%emt 0:00:10]} Rxc1 {[%emt 0:00:30]} 27. Rxc1 {[%emt 0:00:10]} Rc8 {[%emt 0:00:05]} 28. Nf3 {[%emt 0:02:04]} Ng5 {[%emt 0:00:12]} 29. Nxg5 {[%emt 0:01:20]} Bxg5 {[%emt 0:00:05]} 30. Bxg5 {[%emt 0:00:28]} hxg5 {[%emt 0:00:05]} 31. Qf1 {[%emt 0:00:09]} Nh4 {[%emt 0:03:21]} 32. Kh2 {[%emt 0:01:30]} Rf8 33. Rc2 Qa7 34. Kg3 1/2-1/2

[Event "10th Iberoamericano-ch 2024"]
[Site "Linares"]
[Date "2024.09.27"]
[Round "4.15"]
[White "Goncalves, Samuel Jesus P"]
[Black "Labiano Hernandez, Juan"]
[Result "1/2-1/2"]
[ECO "B10"]
[WhiteElo "2169"]
[BlackElo "2398"]
[Annotator "RC"]
[PlyCount "82"]
[EventDate "2024.09.25"]
[EventType "swiss"]
[EventCountry "ESP"]
[SourceTitle "playchess.com"]
[Source "ChessBase"]
[SourceQuality "1"]
[TimeControl "5400+30"]

1. e4 {[%emt 0:07:55]} c6 {[%emt 0:00:09]} 2. Nf3 {[%emt 0:02:06]} d5 {[%emt 0:00:06]} 3. d3 {[%emt 0:00:05]} g6 {[%emt 0:00:22]} 4. e5 {[%emt 0:00:07]} c5 {[%emt 0:09:36]} 5. d4 {[%emt 0:02:11]} Nc6 {[%emt 0:07:11]} 6. dxc5 {[%emt 0:03:13]} Bg7 {[%emt 0:04:15]} 7. Bb5 {[%emt 0:00:46]} Bg4 {[%emt 0:03:19]} 8. O-O {[%emt 0:02:17]} Bxe5 {[%emt 0:05:56]} 9. Re1 {[%emt 0:00:45]} Bg7 {[%emt 0:03:16]} 10. Nc3 {[%emt 0:09:49]} Nf6 {[%emt 0:05:51]} 11. Bg5 {[%emt 0:00:08]} e6 {[%emt 0:19:16]} 12. Bxf6 {[%emt 0:03:24]} Bxf6 {[%emt 0:00:09]} 13. Nxd5 {[%emt 0:00:55]} Bxb2 {[%emt 0:01:11]} 14. Rb1 {[%emt 0:00:39]} Bg7 {[%emt 0:03:39]} 15. h3 {[%emt 0:01:18]} Bxf3 {[%emt 0:01:29]} 16. Qxf3 {[%emt 0:00:03]} O-O {[%emt 0:01:10]} 17. Bxc6 {[%emt 0:00:20]} bxc6 {[%emt 0:00:01]} 18. Nb4 {[%emt 0:00:24]} Qa5 {[%emt 0:03:02]} 19. Qe3 {[%emt 0:00:11]} Qa4 {[%emt 0:03:57]} 20. Qb3 {[%emt 0:02:12]} Qb5 {[%emt 0:00:53]} 21. Nd3 {[%emt 0:01:23]} Qa5 {[%emt 0:01:00]} 22. Re4 {[%emt 0:03:51]} Rfd8 {[%emt 0:07:26]} 23. Qa4 {[%emt 0:03:36]} Qd2 {[%emt 0:04:18]} 24. Rf4 {[%emt 0:06:41]} e5 {[%emt 0:07:23]} 25. Re4 {[%emt 0:03:08]} Rab8 {[%emt 0:01:24]} 26. Rbe1 {[%emt 0:00:09]} Rb5 {[%emt 0:01:50]} 27. Qxa7 {[%emt 0:01:45]} Qxc2 {[%emt 0:01:28]} 28. Nxe5 {[%emt 0:00:40]} Bxe5 {[%emt 0:01:53]} 29. Rxe5 {[%emt 0:00:03]} Rb2 {[%emt 0:00:38]} 30. R5e2 {[%emt 0:05:30]} Qxe2 {[%emt 0:01:12]} 31. Rxe2 {[%emt 0:00:01]} Rxe2 {[%emt 0:00:08]} 32. a4 {[%emt 0:00:48]} Ree8 {[%emt 0:02:21]} 33. Qb7 {[%emt 0:02:34]} Ra8 {[%emt 0:00:12]} 34. Qxc6 {[%emt 0:00:28]} Rec8 {[%emt 0:00:06]} 35. Qd6 {[%emt 0:04:45]} Rxa4 {[%emt 0:01:04]} 36. Qd7 {[%emt 0:00:08]} Raa8 {[%emt 0:00:09]} 37. c6 {[%emt 0:00:26]} Rd8 {[%emt 0:00:08]} 38. Qb7 {[%emt 0:00:24]} Rdb8 {[%emt 0:00:37]} 39. Qd7 {[%emt 0:00:56]} Rd8 {[%emt 0:00:36]} 40. Qb7 {[%emt 0:00:19]} Rdb8 {[%emt 0:00:56]} 41. Qd7 {[%emt 0:01:03]} Rd8 {[%emt 0:00:04]} 1/2-1/2

[Event "10th Iberoamericano-ch 2024"]
[Site "Linares"]
[Date "2024.09.27"]
[Round "4.16"]
[White "Horcajuelo Rocamora, Martin"]
[Black "Giron, Jorge Ernesto"]
[Result "1-0"]
[ECO "A67"]
[WhiteElo "2394"]
[BlackElo "2276"]
[Annotator "RC"]
[PlyCount "105"]
[EventDate "2024.09.25"]
[EventType "swiss"]
[EventCountry "ESP"]
[SourceTitle "playchess.com"]
[Source "ChessBase"]
[SourceQuality "1"]
[TimeControl "5400+30"]

1. d4 {[%emt 0:00:03]} Nf6 {[%emt 0:01:08]} 2. c4 {[%emt 0:00:06]} c5 {[%emt 0:00:11]} 3. d5 {[%emt 0:00:16]} e6 {[%emt 0:00:05]} 4. Nc3 {[%emt 0:00:10]} exd5 {[%emt 0:00:04]} 5. cxd5 {[%emt 0:00:09]} d6 {[%emt 0:00:04]} 6. e4 {[%emt 0:00:12]} g6 {[%emt 0:00:04]} 7. f4 {[%emt 0:00:09]} Bg7 {[%emt 0:00:07]} 8. Bb5+ {[%emt 0:00:08]} Nfd7 {[%emt 0:00:05]} 9. a4 {[%emt 0:00:13]} O-O {[%emt 0:00:06]} 10. Nf3 {[%emt 0:00:08]} Na6 {[%emt 0:00:05]} 11. O-O {[%emt 0:00:11]} Nb4 {[%emt 0:00:02]} 12. Be3 {[%emt 0:00:10]} a6 {[%emt 0:00:55]} 13. Be2 {[%emt 0:00:17]} Re8 {[%emt 0:00:42]} 14. Bf2 {[%emt 0:00:15]} f5 {[%emt 0:13:43]} 15. e5 {[%emt 0:00:06]} dxe5 {[%emt 0:01:13]} 16. d6 {[%emt 0:00:17]} exf4 {[%emt 0:22:06]} 17. Re1 {[%emt 0:00:07]} h6 {[%emt 0:02:03]} 18. Nd5 {[%emt 0:02:07]} Nxd5 {[%emt 0:00:12]} 19. Qxd5+ {[%emt 0:00:06]} Kh7 {[%emt 0:00:03]} 20. Bh4 {[%emt 0:00:19]} Nf6 {[%emt 0:06:08]} 21. Bxf6 {[%emt 0:00:07]} Qxf6 {[%emt 0:00:04]} 22. d7 {[%emt 0:00:05]} Bxd7 {[%emt 0:00:03]} 23. Qxd7 {[%emt 0:00:07]} Re7 {[%emt 0:08:02]} 24. Qd5 {[%emt 0:06:59]} Rae8 {[%emt 0:00:06]} 25. Bc4 {[%emt 0:07:36]} Rxe1+ {[%emt 0:10:23]} 26. Rxe1 {[%emt 0:00:09]} Rxe1+ {[%emt 0:00:03]} 27. Nxe1 {[%emt 0:00:07]} Qd4+ {[%emt 0:00:26]} 28. Kf1 {[%emt 0:07:52]} Qxd5 {[%emt 0:00:09]} 29. Bxd5 {[%emt 0:00:02]} b5 {[%emt 0:00:24]} 30. b3 {[%emt 0:01:36]} bxa4 {[%emt 0:00:17]} 31. bxa4 {[%emt 0:00:05]} Be5 {[%emt 0:00:28]} 32. Ke2 {[%emt 0:00:34]} g5 {[%emt 0:00:23]} 33. h3 {[%emt 0:04:32]} Kg6 {[%emt 0:02:16]} 34. Kd3 {[%emt 0:03:42]} g4 {[%emt 0:03:55]} 35. hxg4 {[%emt 0:01:31]} fxg4 {[%emt 0:00:01]} 36. Ke4 {[%emt 0:01:08]} Bd6 {[%emt 0:01:47]} 37. Bc4 {[%emt 0:18:35]} a5 {[%emt 0:00:06]} 38. Kd5 {[%emt 0:06:11]} Bc7 {[%emt 0:03:06]} 39. Nd3 {[%emt 0:07:46]} Kf5 {[%emt 0:04:50]} 40. Nxc5 {[%emt 0:08:25]} f3 {[%emt 0:02:08]} 41. gxf3 {[%emt 0:00:09]} gxf3 {[%emt 0:00:01]} 42. Bf1 {[%emt 0:07:59]} h5 {[%emt 0:01:50]} 43. Ne6 {[%emt 0:01:51]} Bb6 {[%emt 0:06:47]} 44. Bh3+ {[%emt 0:00:08]} Kf6 {[%emt 0:00:12]} 45. Ke4 {[%emt 0:01:04]} f2 {[%emt 0:00:05]} 46. Nf4 {[%emt 0:01:09]} Kg5 {[%emt 0:00:06]} 47. Kf3 {[%emt 0:01:08]} Kh6 {[%emt 0:06:43]} 48. Bf1 {[%emt 0:00:22]} Kg5 {[%emt 0:00:32]} 49. Nh3+ {[%emt 0:00:06]} Kf6 {[%emt 0:00:22]} 50. Nxf2 {[%emt 0:00:12]} Bc7 {[%emt 0:01:56]} 51. Ne4+ {[%emt 0:00:33]} Kg6 {[%emt 0:00:17]} 52. Bh3 {[%emt 0:00:05]} Be5 {[%emt 0:00:17]} 53. Ke3 {[%emt 0:00:16]} 1-0

[Event "10th Iberoamericano-ch 2024"]
[Site "Linares"]
[Date "2024.09.27"]
[Round "4.17"]
[White "Rocha, Maximiliano"]
[Black "Leiva, Gianmarco"]
[Result "0-1"]
[ECO "C77"]
[WhiteElo "2156"]
[BlackElo "2389"]
[Annotator "RC"]
[PlyCount "54"]
[EventDate "2024.09.25"]
[EventType "swiss"]
[EventCountry "ESP"]
[SourceTitle "playchess.com"]
[Source "ChessBase"]
[SourceQuality "1"]
[TimeControl "5400+30"]

1. e4 {[%emt 0:00:30]} e5 {[%emt 0:14:17]} 2. Nf3 {[%emt 0:00:41]} Nc6 {[%emt 0:00:26]} 3. Bb5 {[%emt 0:01:48]} a6 {[%emt 0:01:00]} 4. Ba4 {[%emt 0:00:05]} Nf6 {[%emt 0:01:34]} 5. d4 {[%emt 0:00:52]} exd4 {[%emt 0:19:47]} 6. O-O {[%emt 0:05:10]} Be7 {[%emt 0:00:04]} 7. e5 {[%emt 0:05:42]} Ne4 {[%emt 0:06:46]} 8. Nxd4 {[%emt 0:09:42]} Nxd4 {[%emt 0:01:02]} 9. Qxd4 {[%emt 0:02:14]} Nc5 {[%emt 0:00:09]} 10. Rd1 {[%emt 0:02:00]} O-O {[%emt 0:01:58]} 11. Nc3 {[%emt 0:00:37]} d6 {[%emt 0:01:32]} 12. Be3 {[%emt 0:02:50]} Be6 {[%emt 0:07:42]} 13. Ne4 {[%emt 0:07:04]} Nxe4 {[%emt 0:12:44]} 14. Qxe4 {[%emt 0:00:48]} d5 {[%emt 0:00:04]} 15. Qf3 {[%emt 0:00:57]} c6 {[%emt 0:08:36]} 16. c3 {[%emt 0:03:04]} f6 {[%emt 0:01:30]} 17. Qg3 {[%emt 0:00:50]} fxe5 {[%emt 0:00:25]} 18. Qxe5 {[%emt 0:00:52]} Bg4 {[%emt 0:00:34]} 19. Rd2 {[%emt 0:07:31]} Bd6 {[%emt 0:02:04]} 20. Qd4 {[%emt 0:02:46]} Bf5 {[%emt 0:03:23]} 21. Bb3 {[%emt 0:03:02]} Kh8 {[%emt 0:01:11]} 22. Bc2 {[%emt 0:16:05]} Qc7 {[%emt 0:04:50]} 23. Qh4 {[%emt 0:03:41]} Rae8 {[%emt 0:00:55]} 24. Rad1 {[%emt 0:07:48]} Bxc2 {[%emt 0:04:08]} 25. Rxc2 {[%emt 0:00:01]} Re4 {[%emt 0:00:03]} 26. Qh3 {[%emt 0:02:10]} Qe7 {[%emt 0:00:16]} 27. Rcc1 {[%emt 0:02:56]} Rh4 {[%emt 0:00:21]} 0-1

[Event "10th Iberoamericano-ch 2024"]
[Site "Linares"]
[Date "2024.09.27"]
[Round "4.18"]
[White "Perea Fruet, Lorenzo"]
[Black "Mingarro Carceller, Sergi"]
[Result "1-0"]
[ECO "B50"]
[WhiteElo "2389"]
[BlackElo "2273"]
[Annotator "RC"]
[PlyCount "115"]
[EventDate "2024.09.25"]
[EventType "swiss"]
[EventCountry "ESP"]
[SourceTitle "playchess.com"]
[Source "ChessBase"]
[SourceQuality "1"]
[TimeControl "5400+30"]

1. e4 {[%emt 0:00:03]} c5 {[%emt 0:00:24]} 2. Nf3 {[%emt 0:00:06]} d6 {[%emt 0:00:16]} 3. c3 {[%emt 0:00:04]} Nf6 {[%emt 0:00:41]} 4. Be2 {[%emt 0:00:05]} g6 {[%emt 0:01:22]} 5. O-O {[%emt 0:00:14]} Bg7 {[%emt 0:00:19]} 6. Bb5+ {[%emt 0:00:11]} Nc6 {[%emt 0:01:22]} 7. Re1 {[%emt 0:11:33]} O-O {[%emt 0:01:40]} 8. h3 {[%emt 0:01:24]} Qb6 {[%emt 0:08:17]} 9. Ba4 {[%emt 0:03:38]} e5 {[%emt 0:03:22]} 10. Na3 {[%emt 0:01:50]} h6 {[%emt 0:08:58]} 11. d3 {[%emt 0:01:41]} Be6 {[%emt 0:02:58]} 12. Bb3 {[%emt 0:03:49]} d5 {[%emt 0:04:24]} 13. exd5 {[%emt 0:05:42]} Nxd5 {[%emt 0:00:33]} 14. Nc4 {[%emt 0:03:53]} Qc7 {[%emt 0:00:21]} 15. Qc2 {[%emt 0:03:08]} Rad8 {[%emt 0:04:30]} 16. Be3 {[%emt 0:07:31]} b6 {[%emt 0:06:30]} 17. Rad1 {[%emt 0:04:16]} Rd7 {[%emt 0:05:42]} 18. Qc1 {[%emt 0:04:54]} Kh7 {[%emt 0:01:09]} 19. Ba4 {[%emt 0:01:12]} Nde7 {[%emt 0:02:48]} 20. Bb3 {[%emt 0:02:58]} Rfd8 {[%emt 0:02:24]} 21. Qb1 {[%emt 0:01:50]} Bf5 {[%emt 0:07:57]} 22. Bc2 {[%emt 0:01:06]} Rd5 {[%emt 0:03:23]} 23. Bc1 {[%emt 0:02:09]} Be6 {[%emt 0:05:27]} 24. a4 {[%emt 0:02:22]} Nf5 {[%emt 0:05:25]} 25. h4 {[%emt 0:03:03]} Qe7 {[%emt 0:11:02]} 26. h5 {[%emt 0:01:32]} Nh4 {[%emt 0:00:41]} 27. Nxh4 Qxh4 {[%emt 0:00:03]} 28. hxg6+ {[%emt 0:02:19]} fxg6 {[%emt 0:00:07]} 29. Ne3 {[%emt 0:03:53]} R5d7 {[%emt 0:02:11]} 30. d4 {[%emt 0:02:42]} exd4 {[%emt 0:02:34]} 31. Bxg6+ {[%emt 0:00:52]} Kh8 {[%emt 0:00:05]} 32. Nf5 {[%emt 0:04:06]} Qf6 {[%emt 0:01:20]} 33. Ng3 {[%emt 0:01:44]} d3 {[%emt 0:02:46]} 34. Bxd3 {[%emt 0:02:51]} Bb3 {[%emt 0:00:16]} 35. Ne4 {[%emt 0:01:59]} Qh4 {[%emt 0:00:50]} 36. Rd2 {[%emt 0:00:30]} Ne5 {[%emt 0:00:13]} 37. Be2 {[%emt 0:01:50]} Bxa4 {[%emt 0:00:49]} 38. Rxd7 {[%emt 0:01:09]} Rxd7 {[%emt 0:00:01]} 39. Ng3 {[%emt 0:01:02]} Rf7 {[%emt 0:01:47]} 40. Qe4 {[%emt 0:03:51]} Qxe4 {[%emt 0:00:37]} 41. Nxe4 {[%emt 0:00:02]} Bf8 {[%emt 0:02:02]} 42. f4 {[%emt 0:01:31]} Nd7 {[%emt 0:01:03]} 43. Bf3 {[%emt 0:00:24]} Bc6 {[%emt 0:00:57]} 44. Nd6 {[%emt 0:00:35]} Bxd6 {[%emt 0:00:44]} 45. Bxc6 {[%emt 0:00:02]} Nf8 {[%emt 0:00:43]} 46. g3 {[%emt 0:00:23]} Re7 {[%emt 0:00:22]} 47. Rd1 {[%emt 0:00:30]} Bc7 {[%emt 0:00:07]} 48. Kf2 {[%emt 0:00:06]} Kg7 {[%emt 0:00:11]} 49. b4 {[%emt 0:01:10]} Ne6 {[%emt 0:01:04]} 50. Be3 {[%emt 0:00:30]} cxb4 {[%emt 0:01:01]} 51. cxb4 {[%emt 0:00:04]} a5 {[%emt 0:00:04]} 52. b5 {[%emt 0:01:11]} Nc5 {[%emt 0:01:04]} 53. Kf3 {[%emt 0:00:27]} h5 {[%emt 0:00:54]} 54. Rd5 {[%emt 0:01:23]} Kg6 {[%emt 0:00:32]} 55. Bxc5 {[%emt 0:01:26]} bxc5 {[%emt 0:00:05]} 56. Rxc5 {[%emt 0:00:08]} Bb6 {[%emt 0:00:10]} 57. Be4+ {[%emt 0:00:09]} Rxe4 {[%emt 0:00:28]} 58. Rg5+ {[%emt 0:00:06]} 1-0

[Event "10th Iberoamericano-ch 2024"]
[Site "Linares"]
[Date "2024.09.27"]
[Round "4.19"]
[White "Garcia, Jhoel"]
[Black "Palma Villanueva, Miguel Tadeo"]
[Result "0-1"]
[ECO "D78"]
[WhiteElo "2360"]
[BlackElo "2266"]
[Annotator "RC"]
[PlyCount "41"]
[EventDate "2024.09.25"]
[EventType "swiss"]
[EventCountry "ESP"]
[SourceTitle "playchess.com"]
[Source "ChessBase"]
[SourceQuality "1"]
[TimeControl "5400+30"]

1. d4 {[%emt 0:06:32]} g6 {[%emt 0:00:05]} 2. Nf3 {[%emt 0:02:57]} Bg7 {[%emt 0:00:23]} 3. g3 {[%emt 0:00:10]} Nf6 {[%emt 0:00:05]} 4. Bg2 {[%emt 0:00:04]} d5 {[%emt 0:00:04]} 5. c4 {[%emt 0:00:11]} c6 {[%emt 0:00:04]} 6. O-O {[%emt 0:00:08]} O-O {[%emt 0:00:16]} 7. b3 {[%emt 0:19:50]} dxc4 {[%emt 0:00:28]} 8. bxc4 {[%emt 0:00:06]} c5 {[%emt 0:00:08]} 9. e3 {[%emt 0:01:38]} Nc6 {[%emt 0:02:21]} 10. Bb2 {[%emt 0:01:24]} Qb6 {[%emt 0:05:17]} 11. Qc1 {[%emt 0:00:52]} Ne4 {[%emt 0:01:11]} 12. Ne5 {[%emt 0:12:31]} f5 {[%emt 0:00:05]} 13. Nxc6 {[%emt 0:19:55]} bxc6 {[%emt 0:02:01]} 14. Nc3 {[%emt 0:09:15]} Rb8 {[%emt 0:23:21]} 15. Rb1 {[%emt 0:02:56]} Nxc3 {[%emt 0:07:22]} 16. Qxc3 {[%emt 0:03:40]} Be6 {[%emt 0:09:54]} 17. Qc2 {[%emt 0:10:16]} Qa6 {[%emt 0:08:44]} 18. Rfc1 {[%emt 0:03:54]} Qxa2 {[%emt 0:03:36]} 19. Bxc6 {[%emt 0:00:12]} cxd4 {[%emt 0:00:41]} 20. Bb5 {[%emt 0:01:29]} d3 {[%emt 0:04:27]} 21. Qd2 0-1

[Event "10th Iberoamericano-ch 2024"]
[Site "Linares"]
[Date "2024.09.27"]
[Round "4.20"]
[White "Garcia Fernandez, Victor"]
[Black "Sicilia Laino, Juan Diego"]
[Result "1-0"]
[ECO "D30"]
[WhiteElo "2353"]
[BlackElo "2090"]
[Annotator "RC"]
[PlyCount "39"]
[EventDate "2024.09.25"]
[EventType "swiss"]
[EventCountry "ESP"]
[SourceTitle "playchess.com"]
[Source "ChessBase"]
[SourceQuality "1"]
[TimeControl "5400+30"]

1. d4 {[%emt 0:02:43]} d5 {[%emt 0:00:08]} 2. c4 {[%emt 0:00:30]} e6 {[%emt 0:00:07]} 3. Bf4 {[%emt 0:02:29]} Nf6 {[%emt 0:00:50]} 4. cxd5 {[%emt 0:00:18]} Nxd5 {[%emt 0:08:34]} 5. Bg3 {[%emt 0:00:28]} Bb4+ {[%emt 0:02:08]} 6. Nd2 {[%emt 0:00:37]} O-O {[%emt 0:01:23]} 7. a3 {[%emt 0:04:30]} Ba5 {[%emt 0:01:56]} 8. Ngf3 {[%emt 0:01:09]} f5 {[%emt 0:01:29]} 9. e3 {[%emt 0:09:08]} f4 {[%emt 0:04:27]} 10. Bh4 {[%emt 0:05:16]} Qe8 {[%emt 0:00:10]} 11. e4 {[%emt 0:00:43]} Ne3 {[%emt 0:00:10]} 12. fxe3 {[%emt 0:00:31]} fxe3 {[%emt 0:00:02]} 13. b4 {[%emt 0:00:23]} exd2+ {[%emt 0:00:08]} 14. Qxd2 {[%emt 0:00:10]} Bb6 {[%emt 0:00:08]} 15. Bc4 {[%emt 0:03:37]} Kh8 {[%emt 0:00:55]} 16. O-O {[%emt 0:01:20]} e5 {[%emt 0:00:31]} 17. Nxe5 {[%emt 0:00:53]} Nc6 {[%emt 0:04:30]} 18. Rxf8+ {[%emt 0:09:41]} Qxf8 {[%emt 0:00:07]} 19. Nf7+ {[%emt 0:00:41]} Kg8 {[%emt 0:00:09]} 20. Rf1 {[%emt 0:00:33]} 1-0

[Event "10th Iberoamericano-ch 2024"]
[Site "Linares"]
[Date "2024.09.27"]
[Round "4.21"]
[White "Jodorcovsky Werjivker, Paulo"]
[Black "Jimenez Garcia, Emmanuel"]
[Result "0-1"]
[ECO "A47"]
[WhiteElo "2092"]
[BlackElo "2352"]
[Annotator "RC"]
[PlyCount "46"]
[EventDate "2024.09.25"]
[EventType "swiss"]
[EventCountry "ESP"]
[SourceTitle "playchess.com"]
[Source "ChessBase"]
[SourceQuality "1"]
[TimeControl "5400+30"]

1. d4 {[%emt 0:00:03]} Nf6 {[%emt 0:00:06]} 2. Nf3 {[%emt 0:00:17]} b6 {[%emt 0:00:30]} 3. g3 {[%emt 0:00:32]} Bb7 {[%emt 0:00:05]} 4. Bg2 {[%emt 0:00:15]} c5 {[%emt 0:00:08]} 5. c3 {[%emt 0:04:11]} e6 {[%emt 0:00:02]} 6. O-O {[%emt 0:00:10]} Be7 {[%emt 0:00:34]} 7. Nbd2 {[%emt 0:05:31]} O-O {[%emt 0:00:51]} 8. a4 {[%emt 0:01:13]} Nc6 {[%emt 0:10:44]} 9. dxc5 {[%emt 0:09:35]} bxc5 {[%emt 0:00:12]} 10. e4 {[%emt 0:00:08]} d5 {[%emt 0:07:07]} 11. exd5 {[%emt 0:01:29]} exd5 {[%emt 0:00:02]} 12. Re1 {[%emt 0:01:57]} Re8 {[%emt 0:06:30]} 13. Nb3 {[%emt 0:04:21]} a5 {[%emt 0:07:55]} 14. Be3 {[%emt 0:03:45]} Qb6 {[%emt 0:04:28]} 15. Nh4 {[%emt 0:17:38]} Bf8 {[%emt 0:03:31]} 16. Nd2 {[%emt 0:01:38]} Ne5 {[%emt 0:16:07]} 17. Qb3 {[%emt 0:14:13]} Qa7 {[%emt 0:17:12]} 18. c4 {[%emt 0:11:34]} Ba6 {[%emt 0:00:14]} 19. cxd5 {[%emt 0:02:34]} Nd3 {[%emt 0:00:19]} 20. Reb1 {[%emt 0:00:27]} Rxe3 {[%emt 0:00:45]} 21. fxe3 {[%emt 0:00:34]} c4 {[%emt 0:00:06]} 22. Nxc4 {[%emt 0:07:52]} Bxc4 {[%emt 0:00:06]} 23. Qc2 {[%emt 0:01:01]} Qxe3+ {[%emt 0:00:14]} 0-1